fUSD/lending_fUSD_20250812
["ID","MTS","AMOUNT","RATE_DAILY","PERIOD"]
[378687149,1754958707944,-493.29378006,0.000189,2]
[378687150,1754958707953,-327.7122655,0.000189,2]
[378687151,1754958707962,-2000.0,0.000189,2]
[378687152,1754958707971,-2500.0,0.000189,3]
[378687153,1754958707981,-5800.0,0.000189,2]
[378687154,1754958707990,-162.99337708,0.000189,2]
[378687155,1754958707999,-211.73953792,0.000189,3]
[378687156,1754958708009,-282.33438882,0.000189,2]
[378687157,1754958708018,-574.72,0.00018909,2]
[378687158,1754958708029,-978.66,0.00018909,2]
[378687159,1754958708038,-539.9,0.00018909,2]
[378687160,1754958708048,-400.0,0.00018909,2]
[378687161,1754958708057,-480.66,0.00018909,2]
[378687162,1754958708066,-446.06,0.00018909,2]
[378687163,1754958708076,-632.96,0.00018909,2]
[378687164,1754958708086,-833.05,0.00018909,2]
[378687165,1754958708096,-400.0,0.00018909,2]
[378687166,1754958708105,-594.7,0.0001891,2]
[378687167,1754958708115,-400.0,0.0001891,2]
[378687168,1754958708124,-227.61850408,0.0001891,2]
[378687169,1754958708134,-400.0,0.0001891,2]
[378687170,1754958708143,-400.0,0.0001891,2]
[378687171,1754958708153,-400.0,0.0001891,2]
[378687172,1754958708162,-400.0,0.0001891,2]
[378687173,1754958708171,-400.0,0.0001891,2]
[378687174,1754958708180,-400.0,0.0001891,2]
[378687175,1754958708190,-541.43,0.0001891,2]
[378687176,1754958708199,-400.0,0.0001891,2]
[378687177,1754958708208,-400.0,0.0001891,2]
[378687178,1754958708219,-400.0,0.0001891,2]
[378687179,1754958708228,-586.31,0.0001891,2]
[378687180,1754958708237,-400.0,0.0001891,2]
[378687181,1754958708247,-400.0,0.0001891,2]
[378687182,1754958708257,-400.0,0.0001891,2]
[378687183,1754958708266,-445.65,0.0001891,2]
[378687184,1754958708276,-400.0,0.0001891,2]
[378687185,1754958708286,-400.0,0.0001891,2]
[378687186,1754958708295,-400.0,0.0001891,2]
[378687187,1754958708304,-555.3,0.0001891,2]
[378687188,1754958708314,-400.0,0.0001891,2]
[378687189,1754958708323,-455.46,0.0001891,2]
[378687190,1754958708333,-528.53,0.0001891,2]
[378687191,1754958708343,-400.0,0.0001891,2]
[378687192,1754958708352,-808.45,0.0001891,2]
[378687193,1754958708362,-400.0,0.0001891,2]
[378687194,1754958708372,-400.0,0.0001891,2]
[378687195,1754958708383,-600.96,0.0001891,2]
[378687196,1754958708392,-400.0,0.0001891,2]
[378687197,1754958708402,-400.0,0.0001891,2]
[378687198,1754958708411,-400.0,0.0001891,2]
[378687199,1754958708421,-400.0,0.0001891,2]
[378687200,1754958708430,-400.0,0.0001891,2]
[378687201,1754958708440,-482.19,0.0001891,2]
[378687202,1754958708450,-400.0,0.0001891,2]
[378687203,1754958708459,-548.353883,0.0001891,2]
[378687204,1754958708468,-349.959486,0.0001891,2]
[378687205,1754958708478,-400.0,0.0001891,2]
[378687206,1754958708488,-611.02,0.0001891,2]
[378687207,1754958708498,-400.0,0.0001891,2]
[378687208,1754958708509,-409.66,0.0001891,2]
[378687209,1754958708518,-400.0,0.0001891,2]
[378687210,1754958708528,-652.048561,0.0001891,2]
[378687211,1754958708538,-400.0,0.0001891,2]
[378687212,1754958708547,-275.24876177,0.0001891,2]
[378687213,1754958708556,-800.99,0.0001891,2]
[378687214,1754958708566,-400.0,0.0001891,2]
[378687215,1754958708575,-400.0,0.0001891,2]
[378687216,1754958708584,-400.0,0.0001891,2]
[378687217,1754958708594,-400.0,0.0001891,2]
[378687218,1754958708603,-820.43,0.0001891,2]
[378687219,1754958708614,-400.0,0.0001891,2]
[378687220,1754958708624,-565.37,0.0001891,2]
[378687221,1754958708633,-573.02,0.0001891,2]
[378687222,1754958708644,-400.0,0.0001891,2]
[378687223,1754958708655,-1278.03,0.0001891,2]
[378687224,1754958708664,-422.09,0.0001891,2]
[378687225,1754958708674,-683.8,0.0001891,2]
[378687226,1754958708685,-400.0,0.0001891,2]
[378687227,1754958708694,-1082.91,0.0001891,2]
[378687228,1754958708704,-400.0,0.0001891,2]
[378687229,1754958708714,-400.0,0.0001891,2]
[378687230,1754958708724,-400.0,0.0001891,2]
[378687231,1754958708734,-1009.96,0.0001891,2]
[378687232,1754958708743,-487.32,0.0001891,2]
[378687233,1754958708752,-471.77,0.0001891,2]
[378687234,1754958708763,-405.23,0.0001891,2]
[378687235,1754958708773,-482.58,0.0001891,2]
[378687236,1754958708783,-1964.74,0.0001891,2]
[378687237,1754958708793,-400.0,0.0001891,2]
[378687238,1754958708802,-591.6,0.0001891,2]
[378687239,1754958708816,-400.0,0.0001891,2]
[378687240,1754958708825,-400.0,0.0001891,2]
[378687241,1754958708835,-400.0,0.0001891,2]
[378687242,1754958708844,-618.38,0.0001891,2]
[378687243,1754958708854,-400.0,0.0001891,2]
[378687244,1754958708865,-400.0,0.0001891,2]
[378687245,1754958708875,-448.94,0.0001891,2]
[378687246,1754958708885,-2118.04,0.0001891,2]
[378687247,1754958708896,-1807.34,0.0001891,2]
[378687248,1754958708906,-400.0,0.0001891,2]
[378687249,1754958708915,-234.9247911,0.0001891,2]
[378687250,1754958708925,-400.0,0.0001891,2]
[378687251,1754958708935,-927.74,0.0001891,2]
[378687252,1754958708945,-936.33,0.0001891,2]
[378687253,1754958708955,-977.28,0.0001891,2]
[378687254,1754958708964,-609.57,0.0001891,2]
[378687255,1754958708974,-400.0,0.0001891,2]
[378687256,1754958708983,-1290.89,0.0001891,2]
[378687257,1754958708993,-400.0,0.0001891,2]
[378687258,1754958709002,-417.25,0.0001891,2]
[378687259,1754958709012,-498.28,0.0001891,2]
[378687260,1754958709021,-510.01,0.0001891,2]
[378687261,1754958709031,-400.0,0.0001891,2]
[378687262,1754958709041,-400.0,0.0001891,2]
[378687263,1754958709050,-378.40902806,0.00018911,2]
[378687264,1754958709059,-543.52,0.00018911,2]
[378687265,1754958709068,-3558.75,0.00018911,2]
[378687266,1754958709078,-415.04,0.00018911,2]
[378687267,1754958709087,-400.0,0.00018911,2]
[378687268,1754958709098,-541.87,0.00018911,2]
[378687269,1754958709107,-686.48,0.00018911,2]
[378687270,1754958709117,-400.0,0.00018911,2]
[378687271,1754958709126,-843.54,0.00018911,2]
[378687272,1754958709135,-501.49,0.00018911,2]
[378687273,1754958709144,-411.31,0.00018911,2]
[378687274,1754958709154,-416.82,0.00018911,2]
[378687275,1754958709163,-400.0,0.00018911,2]
[378687276,1754958709173,-400.0,0.00018911,2]
[378687277,1754958709183,-674.0,0.00018911,2]
[378687278,1754958709192,-412.88,0.00018911,2]
[378687279,1754958709202,-400.0,0.00018911,2]
[378687280,1754958709211,-400.0,0.00018911,2]
[378687281,1754958709220,-400.0,0.00018911,2]
[378687282,1754958709230,-400.0,0.00018911,2]
[378687283,1754958709240,-400.0,0.00018911,2]
[378687284,1754958709250,-941.84,0.00018911,2]
[378687285,1754958709259,-435.86,0.00018911,2]
[378687286,1754958709268,-415.91,0.00018911,2]
[378687287,1754958709278,-1018.78,0.00018911,2]
[378687288,1754958709287,-400.0,0.00018911,2]
[378687289,1754958709297,-400.0,0.00018911,2]
[378687290,1754958709306,-400.0,0.00018911,2]
[378687291,1754958709315,-400.0,0.00018911,2]
[378687292,1754958709325,-400.0,0.00018911,2]
[378687293,1754958709334,-400.0,0.00018911,2]
[378687294,1754958709344,-716.34,0.00018911,2]
[378687295,1754958709353,-250.60754542,0.00018911,2]
[378687296,1754958709362,-400.0,0.00018911,2]
[378687297,1754958709371,-806.63,0.00018911,2]
[378687298,1754958709381,-400.0,0.00018911,2]
[378687299,1754958709390,-400.0,0.00018911,2]
[378687300,1754958709400,-403.05,0.00018911,2]
[378687301,1754958709409,-487.36,0.00018911,2]
[378687302,1754958709418,-400.0,0.00018911,2]
[378687303,1754958709427,-400.0,0.00018911,2]
[378687304,1754958709437,-400.0,0.00018911,2]
[378687305,1754958709446,-406.99,0.00018911,2]
[378687306,1754958709456,-924.79,0.00018911,2]
[378687307,1754958709466,-896.54,0.00018911,2]
[378687308,1754958709476,-400.0,0.00018911,2]
[378687309,1754958709485,-400.0,0.00018911,2]
[378687310,1754958709495,-400.0,0.00018911,2]
[378687311,1754958709504,-400.0,0.00018911,2]
[378687312,1754958709513,-989.5,0.00018911,2]
[378687313,1754958709523,-400.0,0.00018911,2]
[378687314,1754958709532,-400.0,0.00018911,2]
[378687315,1754958709542,-429.77,0.00018911,2]
[378687316,1754958709551,-446.06,0.00018911,2]
[378687317,1754958709561,-400.0,0.00018911,2]
[378687318,1754958709570,-840.46,0.00018911,2]
[378687319,1754958709579,-451.58,0.00018911,2]
[378687320,1754958709588,-5484.25,0.00018911,2]
[378687321,1754958709597,-444.43,0.00018911,2]
[378687322,1754958709606,-1135.69,0.00018911,2]
[378687323,1754958709615,-400.0,0.00018911,2]
[378687324,1754958709624,-473.46,0.00018911,2]
[378687325,1754958709634,-400.0,0.00018911,2]
[378687326,1754958709643,-504.02,0.00018911,2]
[378687327,1754958709653,-425.72,0.00018911,2]
[378687328,1754958709662,-562.93,0.00018911,2]
[378687329,1754958709672,-485.33,0.00018911,2]
[378687330,1754958709681,-400.0,0.00018911,2]
[378687331,1754958709691,-716.05,0.00018911,2]
[378687332,1754958709700,-409.81,0.00018911,2]
[378687333,1754958709709,-1367.17,0.00018911,2]
[378687334,1754958709719,-418.15,0.00018911,2]
[378687335,1754958709729,-487.67,0.00018911,2]
[378687336,1754958709738,-400.0,0.00018911,2]
[378687337,1754958709748,-463.33,0.00018911,2]
[378687338,1754958709764,-400.0,0.00018911,2]
[378687339,1754958709783,-400.0,0.00018911,2]
[378687340,1754958709806,-400.0,0.00018911,2]
[378687341,1754958709823,-1005.19,0.00018911,2]
[378687342,1754958709834,-456.21,0.00018911,2]
[378687343,1754958709844,-400.0,0.00018911,2]
[378687344,1754958709854,-760.85,0.00018911,2]
[378687345,1754958709865,-400.0,0.00018911,2]
[378687346,1754958709875,-461.28,0.00018911,2]
[378687347,1754958709886,-400.0,0.00018911,2]
[378687348,1754958709899,-400.0,0.00018911,2]
[378687349,1754958709909,-415.53,0.00018911,2]
[378687350,1754958709919,-668.63,0.00018911,2]
[378687351,1754958709928,-1056.23,0.00018911,2]
[378687352,1754958709937,-400.0,0.00018911,2]
[378687353,1754958709946,-400.0,0.00018911,2]
[378687354,1754958709956,-401.8,0.00018911,2]
[378687355,1754958709965,-400.0,0.00018911,2]
[378687356,1754958709974,-400.0,0.00018911,2]
[378687357,1754958709983,-1254.99,0.00018911,2]
[378687358,1754958709992,-400.0,0.00018911,2]
[378687359,1754958710001,-400.0,0.00018911,2]
[378687360,1754958710010,-400.0,0.00018911,2]
[378687361,1754958710020,-400.0,0.00018911,2]
[378687362,1754958710029,-448.0,0.00018911,2]
[378687363,1754958710038,-416.54,0.00018911,2]
[378687364,1754958710048,-434.77,0.00018911,2]
[378687365,1754958710057,-400.0,0.00018911,2]
[378687366,1754958710066,-400.0,0.00018911,2]
[378687367,1754958710075,-1026.25,0.00018911,2]
[378687368,1754958710084,-400.0,0.00018911,2]
[378687369,1754958710093,-428.67,0.00018911,2]
[378687370,1754958710102,-855.22,0.00018911,2]
[378687371,1754958710112,-400.0,0.00018911,2]
[378687372,1754958710120,-527.94,0.00018911,2]
[378687373,1754958710130,-405.68696464,0.00018911,2]
[378687374,1754958710139,-690.8,0.00018911,2]
[378687375,1754958710148,-660.29,0.00018911,2]
[378687376,1754958710157,-661.7,0.00018911,2]
[378687377,1754958710166,-400.0,0.00018911,2]
[378687378,1754958710175,-400.0,0.00018911,2]
[378687379,1754958710184,-553.06,0.00018911,2]
[378687380,1754958710194,-485.52,0.00018911,2]
[378687381,1754958710203,-414.15,0.00018911,2]
[378687382,1754958710212,-400.0,0.00018911,2]
[378687383,1754958710222,-689.02,0.00018911,2]
[378687384,1754958710232,-2000.0,0.00018916,2]
[378687385,1754958710242,-500.0,0.00018916,2]
[378687386,1754958710251,-1107.19,0.00018921,2]
[378687387,1754958710260,-646.57,0.00018921,2]
[378687388,1754958710270,-739.29,0.00018921,2]
[378687389,1754958710279,-541.35,0.00018921,2]
[378687390,1754958710289,-756.83,0.00018921,2]
[378687391,1754958710298,-400.0,0.00018921,2]
[378687392,1754958710308,-540.43,0.00018921,2]
[378687393,1754958710320,-880.76,0.00018921,2]
[378687394,1754958710329,-1331.32,0.00018921,2]
[378687395,1754958710338,-1152.75,0.00018921,2]
[378687396,1754958710347,-1103.08,0.00018921,2]
[378687397,1754958710356,-673.98,0.00018921,2]
[378687398,1754958710366,-667.16,0.00018921,2]
[378687399,1754958710375,-1238.08,0.00018921,2]
[378687400,1754958710384,-723.65,0.00018921,2]
[378687401,1754958710394,-741.47,0.00018921,2]
[378687402,1754958710404,-1093.69,0.00018921,2]
[378687403,1754958710414,-5867.06,0.00018921,2]
[378687404,1754958710424,-581.96,0.00018921,2]
[378687405,1754958710434,-810.42,0.00018922,2]
[378687406,1754958710444,-209.0,0.0001898,2]
[378687407,1754958710453,-5920.3624393,0.00018987,2]
[378687408,1754958710463,-7086.0296553,0.00018987,2]
[378687409,1754958710472,-8251.6968714,0.00018987,2]
[378687410,1754958710483,-9417.3640874,0.00018987,2]
[378687411,1754958710494,-10583.0313035,0.00018987,2]
[378687412,1754958710504,-601.26268498,0.0001899,2]
[378687413,1754958710513,-16441.51487169,0.00018999,2]
[378687414,1754958710522,-7000.0,0.00018999,7]
[378687415,1754958710531,-163.09355385,0.00018999,2]
[378687416,1754958710540,-1000.0,0.00018999,2]
[378687417,1754958710549,-1000.0,0.00018999,2]
[378687418,1754958710559,-5387.06776289,0.00018999,7]
[378687419,1754958710568,-359.27061638,0.00018999,7]
[378687420,1754958710577,-1000.0,0.00018999,2]
[378687421,1754958710586,-1000.0,0.00018999,2]
[378687422,1754958710596,-2132.43426546,0.00019,2]
[378687423,1754958710605,-200.0,0.00019,7]
[378687424,1754958710614,-5000.0,0.00019,4]
[378687425,1754958710623,-11758265.86299898,0.00019,2]
[378687426,1754958710632,-737.18,0.00019,2]
[378687427,1754958710641,-3000.0,0.00019,2]
[378687428,1754958710650,-3000.0,0.00019,2]
[378687429,1754958710660,-3002.8,0.00019,2]
[378687430,1754958710669,-5059.94382972,0.00019,2]
[378687431,1754958710678,-518245.14574537,0.00019,2]
[378687432,1754958710688,-1253245.25786384,0.00019,2]
[378687433,1754958710697,-500.0,0.00019,2]
[378687434,1754958710707,-127914.17542766,0.00019,2]
[378687435,1754958710716,-106798.54087616,0.00019,2]
[378687436,1754958710724,-2999.99,0.00019,2]
[378687437,1754958710734,-1000.89,0.00019,2]
[378687438,1754958710743,-1362771.48714503,0.00019,2]
[378687439,1754958710752,-999.96,0.00019,2]
[378687440,1754958710762,-1279.89,0.00019,2]
[378687441,1754958710771,-286422.985221,0.00019,2]
[378687442,1754958710779,-460008.73269014,0.00019,2]
[378687443,1754958710788,-34159.29949368,0.00019,2]
[378687444,1754958710798,-102469.46632055,0.00019,2]
[378687445,1754958710807,-122766.41280206,0.00019,2]
[378687446,1754958710820,-1127794.11404442,0.00019,2]
[378687447,1754958710829,-646945.96404723,0.00019,2]
[378687448,1754958710838,-16119.08782907,0.00019,2]
[378687449,1754958710847,-375998.70819317,0.00019,2]
[378687450,1754958710856,-452745.82629082,0.00019,2]
[378687451,1754958710865,-1247051.47122491,0.00019,2]
[378687452,1754958710875,-209.0,0.00019,2]
[378687453,1754958710884,-209.0,0.00019,2]
[378687454,1754958710894,-209.0,0.00019,2]
[378687455,1754958710903,-209.0,0.00019,2]
[378687456,1754958710911,-209.0,0.00019,2]
[378687457,1754958710920,-209.0,0.00019,2]
[378687458,1754958711109,-819148.01232961,0.00019,2]
[378687459,1754958711118,-225371.14624489,0.00019,2]
[378687460,1754958711128,-213.0,0.00019,2]
[378687461,1754958711137,-213.0,0.00019,2]
[378687462,1754958711146,-213.0,0.00019,2]
[378687463,1754958711155,-213.0,0.00019,2]
[378687464,1754958711164,-213.0,0.00019,2]
[378687465,1754958711173,-207.0,0.00019,2]
[378687466,1754958711182,-207.0,0.00019,2]
[378687467,1754958711190,-207.0,0.00019,2]
[378687468,1754958711199,-207.0,0.00019,2]
[378687469,1754958711209,-207.0,0.00019,2]
[378687470,1754958711219,-306.0,0.00019,2]
[378687471,1754958711228,-300.0,0.00019,2]
[378687472,1754958711237,-302466.93906095,0.00019,2]
[378687473,1754958711248,-302466.93906095,0.00019,2]
[378687474,1754958711264,-302466.93906095,0.00019,2]
[378687475,1754958711273,-1144.78525059,0.00019,2]
[378687476,1754958711282,-1144.78525059,0.00019,2]
[378687477,1754958711291,-658178.25684142,0.00019,2]
[378687478,1754958711300,-355.05094594,0.00019,2]
[378687479,1754958711309,-246664.18184518,0.00019,2]
[378687480,1754958711319,-3436.03271165,0.00019,2]
[378687481,1754958711328,-3436.03271165,0.00019,2]
[378687482,1754958711338,-211.73953792,0.00019,7]
[378687483,1754958711347,-457.87080987,0.00019,7]
[378687484,1754958711356,-400.0,0.00019004,2]
[378687485,1754958711366,-400.0,0.00019004,2]
[378687486,1754958711375,-400.0,0.00019004,2]
[378687487,1754958711385,-400.0,0.00019004,2]
[378687488,1754958711394,-400.0,0.00019004,2]
[378687489,1754958711403,-400.0,0.00019004,2]
[378687490,1754958711412,-400.0,0.00019004,2]
[378687491,1754958711421,-385.12432032,0.00019004,2]
[378687492,1754958711431,-220.05201724,0.00019004,2]
[378687493,1754958711440,-400.0,0.00019004,2]
[378687494,1754958711449,-400.0,0.00019004,2]
[378687495,1754958711460,-225.48275411,0.00019004,2]
[378687496,1754958711469,-400.0,0.00019004,2]
[378687497,1754958711478,-400.0,0.00019004,2]
[378687498,1754958711488,-400.0,0.00019004,2]
[378687499,1754958711498,-400.0,0.00019004,2]
[378687500,1754958711510,-400.0,0.00019004,2]
[378687501,1754958711521,-400.0,0.00019004,2]
[378687502,1754958711532,-400.0,0.00019004,2]
[378687503,1754958711542,-400.0,0.00019004,2]
[378687504,1754958711551,-400.0,0.00019004,2]
[378687505,1754958711561,-343.33546115,0.00019004,2]
[378687506,1754958711571,-400.0,0.00019004,2]
[378687507,1754958711580,-349.97059554,0.0001901,7]
[378687508,1754958711590,-213.0,0.000191,2]
[378687509,1754958711599,-207.0,0.000191,2]
[378687510,1754958711609,-248.71531821,0.00019166,2]
[378687511,1754958711619,-2566.20990029,0.0001917,2]
[378687512,1754958711628,-1353.75,0.00019171,2]
[378687513,1754958711638,-180.60885052,0.00019171,2]
[378687514,1754958711647,-272.63835721,0.00019171,2]
[378687515,1754958711657,-1368.73,0.00019171,2]
[378687516,1754958711668,-835.27,0.00019171,2]
[378687517,1754958711679,-638.05,0.00019171,2]
[378687518,1754958711688,-1206.42,0.00019171,2]
[378687519,1754958711699,-8653.14,0.00019171,2]
[378687520,1754958711709,-513.0,0.00019173,5]
[378687521,1754958711719,-160.0,0.00019173,2]
[378687522,1754958711728,-373.07297731,0.00019173,2]
[378687523,1754958711737,-151.0,0.00019178,2]
[378687524,1754958711747,-150.0,0.00019178,2]
[378687525,1754958711756,-3322.98,0.00019178,2]
[378687526,1754958711766,-11234.66,0.00019178,2]
[378687527,1754958711775,-642.193391,0.00019178,2]
[378687528,1754958711785,-642.193391,0.00019178,2]
[378687529,1754958711794,-642.193391,0.00019178,2]
[378687530,1754958711803,-642.193391,0.00019178,2]
[378687531,1754958711816,-642.193391,0.00019178,2]
[378687532,1754958711826,-642.193391,0.00019178,2]
[378687533,1754958711835,-642.193391,0.00019178,2]
[378687534,1754958711845,-642.193391,0.00019178,2]
[378687535,1754958711855,-642.193391,0.00019178,2]
[378687536,1754958711866,-642.193391,0.00019178,2]
[378687537,1754958711876,-642.193391,0.00019178,2]
[378687538,1754958711887,-642.193391,0.00019178,2]
[378687539,1754958711897,-642.193391,0.00019178,2]
[378687540,1754958711906,-642.193391,0.00019178,2]
[378687541,1754958711917,-642.193391,0.00019178,2]
[378687542,1754958711926,-642.193391,0.00019178,2]
[378687543,1754958711938,-642.193391,0.00019178,2]
[378687544,1754958711948,-642.193391,0.00019178,2]
[378687545,1754958711958,-642.193391,0.00019178,2]
[378687546,1754958711967,-642.193394,0.00019178,2]
[378687547,1754958711978,-12143.84,0.00019178,2]
[378687548,1754958711989,-5826.88,0.00019178,2]
[378687549,1754958712000,-150.0,0.00019178,2]
[378687550,1754958712010,-574.72,0.00019183,2]
[378687551,1754958712020,-978.66,0.00019183,2]
[378687552,1754958712031,-539.9,0.00019183,2]
[378687553,1754958712043,-400.0,0.00019183,2]
[378687554,1754958712052,-480.66,0.00019183,2]
[378687555,1754958712062,-446.06,0.00019183,2]
[378687556,1754958712071,-632.96,0.00019183,2]
[378687557,1754958712081,-833.05,0.00019183,2]
[378687558,1754958712090,-400.0,0.00019183,2]
[378687559,1754958712100,-594.7,0.00019184,2]
[378687560,1754958712109,-400.0,0.00019184,2]
[378687561,1754958712119,-400.0,0.00019184,2]
[378687562,1754958712128,-400.0,0.00019184,2]
[378687563,1754958712137,-400.0,0.00019184,2]
[378687564,1754958712146,-400.0,0.00019184,2]
[378687565,1754958712156,-400.0,0.00019184,2]
[378687566,1754958712166,-400.0,0.00019184,2]
[378687567,1754958712175,-541.43,0.00019184,2]
[378687568,1754958712185,-400.0,0.00019184,2]
[378687569,1754958712197,-400.0,0.00019184,2]
[378687570,1754958712207,-586.31,0.00019184,2]
[378687571,1754958712217,-338.10104969,0.00019184,2]
[378687572,1754958712226,-400.0,0.00019184,2]
[378687573,1754958712235,-400.0,0.00019184,2]
[378687574,1754958712244,-445.65,0.00019184,2]
[378687575,1754958712254,-400.0,0.00019184,2]
[378687576,1754958712263,-400.0,0.00019184,2]
[378687577,1754958712273,-400.0,0.00019184,2]
[378687578,1754958712282,-555.3,0.00019184,2]
[378687579,1754958712292,-400.0,0.00019184,2]
[378687580,1754958712301,-455.46,0.00019184,2]
[378687581,1754958712310,-528.53,0.00019184,2]
[378687582,1754958712319,-400.0,0.00019184,2]
[378687583,1754958712329,-808.45,0.00019184,2]
[378687584,1754958712338,-400.0,0.00019184,2]
[378687585,1754958712347,-400.0,0.00019184,2]
[378687586,1754958712356,-600.96,0.00019184,2]
[378687587,1754958712365,-400.0,0.00019184,2]
[378687588,1754958712374,-400.0,0.00019184,2]
[378687589,1754958712384,-400.0,0.00019184,2]
[378687590,1754958712393,-301.44075936,0.00019184,2]
[378687591,1754958712402,-400.0,0.00019184,2]
[378687592,1754958712412,-482.19,0.00019184,2]
[378687593,1754958712421,-400.0,0.00019184,2]
[378687594,1754958712432,-548.353883,0.00019184,2]
[378687595,1754958712442,-349.959486,0.00019184,2]
[378687596,1754958712452,-400.0,0.00019184,2]
[378687597,1754958712462,-611.02,0.00019184,2]
[378687598,1754958712475,-400.0,0.00019184,2]
[378687599,1754958712485,-409.66,0.00019184,2]
[378687600,1754958712496,-400.0,0.00019184,2]
[378687601,1754958712506,-652.048561,0.00019184,2]
[378687602,1754958712516,-400.0,0.00019184,2]
[378687603,1754958712525,-800.99,0.00019184,2]
[378687604,1754958712535,-400.0,0.00019184,2]
[378687605,1754958712544,-400.0,0.00019184,2]
[378687606,1754958712553,-400.0,0.00019184,2]
[378687607,1754958712564,-271.34807817,0.00019184,2]
[378687608,1754958712573,-820.43,0.00019184,2]
[378687609,1754958712583,-400.0,0.00019184,2]
[378687610,1754958712592,-565.37,0.00019184,2]
[378687611,1754958712601,-573.02,0.00019184,2]
[378687612,1754958712611,-400.0,0.00019184,2]
[378687613,1754958712621,-1278.03,0.00019184,2]
[378687614,1754958712630,-422.09,0.00019184,2]
[378687615,1754958712640,-683.8,0.00019184,2]
[378687616,1754958712650,-400.0,0.00019184,2]
[378687617,1754958712659,-1082.91,0.00019184,2]
[378687618,1754958712669,-400.0,0.00019184,2]
[378687619,1754958712678,-400.0,0.00019184,2]
[378687620,1754958712688,-400.0,0.00019184,2]
[378687621,1754958712697,-1009.96,0.00019184,2]
[378687622,1754958712706,-487.32,0.00019184,2]
[378687623,1754958712719,-471.77,0.00019184,2]
[378687624,1754958712728,-405.23,0.00019184,2]
[378687625,1754958712738,-482.58,0.00019184,2]
[378687626,1754958712747,-1964.74,0.00019184,2]
[378687627,1754958712757,-400.0,0.00019184,2]
[378687628,1754958712767,-591.6,0.00019184,2]
[378687629,1754958712777,-400.0,0.00019184,2]
[378687630,1754958712787,-400.0,0.00019184,2]
[378687631,1754958712796,-400.0,0.00019184,2]
[378687632,1754958712806,-618.38,0.00019184,2]
[378687633,1754958712819,-400.0,0.00019184,2]
[378687634,1754958712828,-400.0,0.00019184,2]
[378687635,1754958712837,-448.94,0.00019184,2]
[378687636,1754958712847,-2118.04,0.00019184,2]
[378687637,1754958712857,-1807.34,0.00019184,2]
[378687638,1754958712867,-400.0,0.00019184,2]
[378687639,1754958712876,-400.0,0.00019184,2]
[378687640,1754958712886,-927.74,0.00019184,2]
[378687641,1754958712895,-936.33,0.00019184,2]
[378687642,1754958712905,-609.57,0.00019184,2]
[378687643,1754958712914,-977.28,0.00019184,2]
[378687644,1754958712923,-400.0,0.00019184,2]
[378687645,1754958712933,-1290.89,0.00019184,2]
[378687646,1754958712942,-150.22,0.00019184,2]
[378687647,1754958712951,-417.25,0.00019184,2]
[378687648,1754958712960,-498.28,0.00019184,2]